lending/lending_fUSD_20260306
["ID","MTS","AMOUNT","RATE_DAILY","PERIOD"]
[407852606,1772836241530,-1500.0,0.00014795,2]
[407852607,1772836241540,-1500.0,0.00014795,2]
[407852608,1772836241551,-1500.0,0.00014795,2]
[407852609,1772836241563,-1500.0,0.00014795,2]
[407852610,1772836241575,-1557.2086331,0.00014795,2]
[407852611,1772836241585,-1500.0,0.00014795,2]
[407852612,1772836241597,-1500.0,0.00014795,2]
[407852613,1772836241609,-3816.52,0.00014822,2]
[407852614,1772836241621,-259.860044,0.00014843,2]
[407852615,1772836241641,-831.01,0.00014853,2]
[407852616,1772836241657,-500.0,0.00014891,2]
[407852617,1772836241953,-13100.0,0.000149,5]
[407852618,1772836241974,-2000.0,0.00014916,2]
[407852619,1772836241992,-200.0,0.00014966,2]
[407852620,1772836242002,-200.0,0.00015,2]
[407852621,1772836242012,-500.0,0.00015016,2]
[407852622,1772836242021,-2000.0,0.00015016,2]
[407852623,1772836242031,-500.0,0.00015016,2]
[407852624,1772836242041,-1500.0,0.00015019,2]
[407852625,1772836242051,-1635.64,0.00015079,2]
[407852626,1772836242060,-1635.65,0.00015197,2]
[407852627,1772836242069,-2000.0,0.00015342,2]
[407852628,1772836242078,-2000.0,0.00015342,2]
[407852629,1772836242087,-2000.0,0.00015342,2]
[407852630,1772836242097,-11608.74657983,0.00015387,2]
[407852631,1772836242106,-12627.85875546,0.00015447,2]
[407852632,1772836242115,-500.0,0.00015453,2]
[407852633,1772836242124,-2503.37044262,0.00015464,2]
[407852634,1772836242133,-2351.0,0.00015487,2]
[407852635,1772836242143,-1600.0,0.00015498,2]
[407852636,1772836242152,-200.0,0.00015514,2]
[407852637,1772836242161,-433.0,0.00015542,2]
[407852638,1772836242170,-2500.0,0.00015564,2]
[407852639,1772836242189,-981.48113076,0.0001572,2]
[407852641,1772836242199,-503.0,0.00015798,4]
[407852643,1772836242209,-278.57186039,0.0001589,2]
[407852644,1772836242218,-500.0,0.0001589,2]
[407852645,1772836242227,-546.47179689,0.0001589,2]
[407852646,1772836242237,-150.0,0.000159,2]
[407852647,1772836242246,-150.0,0.000159,2]
[407852648,1772836242256,-150.0,0.000159,2]
[407852649,1772836242266,-150.0,0.000159,2]
[407852650,1772836242275,-258.69744367,0.0001596,2]
[407852651,1772836242285,-500.0,0.00016061,2]
[407852652,1772836242295,-200.0,0.00016062,2]
[407852653,1772836242304,-3000.0,0.00016112,2]
[407852655,1772836242314,-7979.49,0.00016116,2]
[407852656,1772836242323,-2000.0,0.0001612,2]
[407852657,1772836242333,-2000.0,0.0001612,2]
[407852658,1772836242343,-12627.85875546,0.00016189,2]
[407852659,1772836242352,-272.73,0.0001621,2]
[407852660,1772836242361,-2000.0,0.0001622,2]
[407852661,1772836242371,-2000.0,0.0001622,2]
[407852662,1772836242381,-2000.0,0.0001632,2]
[407852663,1772836242390,-2000.0,0.0001632,2]
[407852664,1772836242400,-150.0,0.000164,2]
[407852665,1772836242410,-213.0,0.000164,2]
[407852666,1772836242419,-302.46,0.000164,2]
[407852667,1772836242429,-352.32802655,0.000164,2]
[407852669,1772836242438,-272.73,0.0001648,2]
[407852670,1772836242448,-421.8946451,0.00016566,2]
[407852671,1772836242458,-240.02207299,0.0001661,2]
[407852672,1772836242467,-3500.0,0.0001666,2]
[407852673,1772836242478,-272.73,0.0001675,2]
[407852674,1772836242487,-250.0,0.00016781,2]
[407852675,1772836242497,-736.0,0.00016851,2]
[407852676,1772836242506,-1094.27,0.000169,2]
[407852677,1772836242516,-15281.85,0.00016913,7]
[407852678,1772836242537,-1528.19,0.00016913,7]
[407852679,1772836242558,-12627.85875546,0.00016931,2]
[407852680,1772836242569,-500.0,0.00016999,2]
[407852681,1772836242579,-500.0,0.00016999,2]
[407852682,1772836242588,-200.0,0.00017,2]
[407852683,1772836242598,-172.74325605,0.00017,7]
[407852684,1772836242609,-272.73,0.0001702,2]
[407852685,1772836242618,-3292.0,0.00017035,2]
[407852686,1772836242628,-1600.0,0.00017048,2]
[407852687,1772836242637,-301.78790722,0.0001708,2]
[407852688,1772836242648,-500.0,0.0001708,2]
[407852689,1772836242657,-500.0,0.0001708,2]
[407852690,1772836242670,-9547.53,0.0001708,2]
[407852691,1772836242680,-500.0,0.0001715,2]
[407852692,1772836242689,-3500.0,0.00017208,2]
[407852693,1772836242699,-500.0,0.00017243,2]
[407852694,1772836242711,-272.73,0.0001729,2]
[407852695,1772836242731,-11813.07,0.00017335,2]
[407852696,1772836242742,-11461.38,0.0001742,7]
[407852697,1772836242752,-1146.14,0.0001742,7]
[407852698,1772836242761,-272.73,0.0001756,2]
[407852699,1772836242770,-500.0,0.00017628,2]
[407852700,1772836242780,-500.0,0.00017628,2]
[407852701,1772836242789,-12627.85875546,0.00017673,2]
[407852702,1772836242800,-500.0,0.00017791,2]
[407852703,1772836242809,-800.0,0.00017808,2]
[407852704,1772836242818,-272.73,0.0001783,2]
[407852705,1772836242827,-1484.34556035,0.000179,2]
[407852706,1772836242836,-1484.34556033,0.000179,2]
[407852707,1772836242846,-1484.34556033,0.000179,2]
[407852708,1772836242855,-1484.34556033,0.000179,2]
[407852709,1772836242864,-7640.92,0.00017927,7]
[407852710,1772836242874,-764.09,0.00017927,7]
[407852711,1772836242883,-272.73,0.000181,2]
[407852712,1772836242893,-1000.0,0.00018155,2]
[407852713,1772836242903,-217.38,0.00018155,2]
[407852714,1772836242912,-1852.42,0.00018155,2]
[407852715,1772836242921,-503.0,0.00018176,6]
[407852716,1772836242931,-271.62202622,0.00018187,2]
[407852717,1772836242943,-1252.0,0.00018266,2]
[407852718,1772836242952,-272.73,0.0001837,2]
[407852719,1772836242962,-12627.85875546,0.00018416,2]
[407852720,1772836242971,-876.76,0.00018417,2]
[407852721,1772836242980,-1600.0,0.00018598,2]
[407852722,1772836242989,-272.73,0.0001864,2]
[407852723,1772836242999,-876.76,0.00018691,2]
[407852724,1772836243009,-1100.0,0.00018739,2]
[407852725,1772836243018,-1689.617791,0.0001885,7]
[407852726,1772836243027,-168.0,0.0001888,2]
[407852727,1772836243037,-272.73,0.0001891,2]
[407852728,1772836243046,-160.0,0.00018926,2]
[407852729,1772836243056,-172.74325605,0.00018926,2]
[407852730,1772836243065,-876.76,0.00018965,2]
[407852731,1772836243075,-1139.94663553,0.00019,2]
[407852732,1772836243084,-5026.57882922,0.00019,2]
[407852733,1772836243094,-5000.0,0.00019,2]
[407852734,1772836243103,-5000.0,0.00019,2]
[407852735,1772836243113,-24849.85281469,0.00019,2]
[407852736,1772836243123,-168.0,0.0001909,2]
[407852737,1772836243133,-168.0,0.00019097,2]
[407852738,1772836243146,-12627.85875546,0.00019158,2]
[407852739,1772836243160,-3000.0,0.00019178,2]
[407852740,1772836243170,-3000.0,0.00019178,7]
[407852741,1772836243181,-150.0,0.00019178,2]
[407852742,1772836243191,-272.73,0.0001918,2]
[407852743,1772836243201,-876.76,0.00019239,2]
[407852744,1772836243211,-780.83,0.0001934,2]
[407852745,1772836243221,-500.0,0.00019434,2]
[407852746,1772836243231,-272.73,0.0001945,2]
[407852747,1772836243240,-780.83,0.00019614,2]
[407852748,1772836243250,-1000.9885,0.00019685,120]
[407852749,1772836243260,-172.74325605,0.000197,7]
[407852750,1772836243269,-2600.0,0.000197,7]
[407852751,1772836243279,-272.73,0.0001972,2]
[407852752,1772836243289,-250.0,0.00019726,2]
[407852753,1772836243299,-168.0,0.0001977,2]
[407852754,1772836243308,-2600.0,0.000198,7]
[407852755,1772836243318,-1348.0,0.00019801,2]
[407852756,1772836243328,-141628.69642043,0.0001981,2]
[407852757,1772836243338,-292.0,0.0001985,2]
[407852758,1772836243347,-25000.0,0.00019882,3]
[407852759,1772836243357,-780.83,0.00019887,2]
[407852760,1772836243367,-25000.0,0.00019891,3]
[407852761,1772836243376,-500.0,0.00019899,2]
[407852762,1772836243385,-1058.11044493,0.000199,2]
[407852763,1772836243396,-585.59211422,0.000199,5]
[407852764,1772836243405,-1474.89157709,0.000199,5]
[407852765,1772836243415,-1325.11959243,0.000199,5]
[407852766,1772836243425,-1459.32661512,0.000199,5]
[407852767,1772836243438,-25000.0,0.000199,3]
[407852768,1772836243448,-2148.8308,0.000199,2]
[407852769,1772836243458,-172.74325605,0.000199,3]
[407852770,1772836243469,-25000.0,0.000199,3]
[407852771,1772836243479,-2600.0,0.000199,7]
[407852772,1772836243490,-459.18677778,0.000199,3]
[407852773,1772836243499,-421.8946451,0.000199,2]
[407852774,1772836243508,-12627.85875546,0.000199,2]
[407852775,1772836243518,-168.0,0.00019902,2]
[407852776,1772836243528,-534.41020395,0.0001998,2]
[407852777,1772836243537,-500.0,0.00019989,2]
[407852778,1772836243546,-272.73,0.0001999,2]
[407852779,1772836243556,-245450.1301833,0.0001999,2]
[407852780,1772836243565,-652.90378303,0.0001999,2]
[407852781,1772836243574,-1261.3291114,0.00019996,2]
[407852782,1772836243584,-151.0,0.00019997,2]
[407852783,1772836243594,-300.0,0.00019999,2]
[407852784,1772836243603,-500.0,0.00019999,2]
[407852785,1772836243613,-500.0,0.00019999,2]
[407852786,1772836243623,-500.0,0.00019999,2]
[407852787,1772836243632,-500.0,0.00019999,2]
[407852788,1772836243641,-485.29077404,0.00019999,2]
[407852789,1772836243650,-255.7089877,0.00019999,2]
[407852790,1772836243659,-3936271.50561865,0.0002,2]
[407852791,1772836243674,-327.3816354,0.0002,120]
[407852792,1772836243686,-1474.82784586,0.0002,5]
[407852793,1772836243695,-3846457.65325892,0.0002,2]
[407852794,1772836243759,-356.17515124,0.0002,2]
[407852795,1772836243944,-277.1987,0.00013128,2]
[407852796,1772836243964,-524.49527509,0.00013128,2]
[407852797,1772836243976,-146.10415491,0.00016139,2]
[407852798,1772836243993,-1127.27365338,0.00016139,2]
[407852799,1772836244006,-10335.36877154,0.00016139,2]
[407852800,1772836244015,-588573.02706303,0.0002,2]
[407852801,1772836244025,-132637.64876581,0.0002,2]
[407852802,1772836244034,-2953.57487299,0.0002,7]
[407852803,1772836244044,-501.242938,0.0002,10]
[407852804,1772836244054,-532.21530917,0.0002,7]
[407852805,1772836244063,-1435.21,0.0002,120]
[407852806,1772836244073,-12979.23134695,0.0002,2]
[407852807,1772836244082,-724.51160049,0.0002,120]
[407852808,1772836244092,-1834.01186954,0.0002,120]
[407852809,1772836244101,-301.26432731,0.0002,5]
[407852810,1772836244111,-292.7,0.0002,7]
[407852811,1772836244120,-151.0,0.0002,2]
[407852812,1772836244130,-190.386435,0.0002,2]
[407852813,1772836244139,-151.0,0.0002,2]
[407852814,1772836244149,-151.0,0.0002,2]
[407852815,1772836244158,-151.0,0.0002,2]
[407852816,1772836244167,-268.84519,0.0002,2]
[407852817,1772836244178,-732.794215,0.0002,2]
[407852818,1772836244188,-732.794215,0.0002,2]
[407852819,1772836244198,-732.794215,0.0002,2]
[407852820,1772836244207,-732.794215,0.0002,2]
[407852821,1772836244217,-732.794215,0.0002,2]
[407852822,1772836244227,-732.794215,0.0002,2]
[407852823,1772836244237,-732.794215,0.0002,2]
[407852824,1772836244248,-732.794215,0.0002,2]
[407852825,1772836244258,-151.0,0.0002,2]
[407852826,1772836244267,-151.0,0.0002,2]
[407852827,1772836244277,-151.0,0.0002,2]
[407852828,1772836244287,-151.0,0.0002,2]
[407852829,1772836244296,-151.0,0.0002,2]
[407852830,1772836244306,-151.0,0.0002,2]
[407852831,1772836244315,-151.0,0.0002,2]
[407852832,1772836244325,-151.0,0.0002,2]
[407852833,1772836244335,-151.0,0.0002,2]
[407852834,1772836244345,-151.0,0.0002,2]
[407852835,1772836244355,-151.0,0.0002,2]
[407852836,1772836244365,-275.831977,0.0002,2]
[407852837,1772836244375,-225.482149,0.0002,2]
[407852838,1772836244384,-225.482149,0.0002,2]
[407852839,1772836244394,-225.482149,0.0002,2]
[407852840,1772836244404,-225.482149,0.0002,2]
[407852841,1772836244418,-825.0,0.0002,30]
[407852842,1772836244430,-225.482149,0.0002,2]
[407852843,1772836244441,-225.482149,0.0002,2]
[407852844,1772836244452,-225.482149,0.0002,2]
[407852845,1772836244463,-225.482149,0.0002,2]
[407852846,1772836244475,-151.0,0.0002,2]
[407852847,1772836244486,-151.0,0.0002,2]
[407852848,1772836244499,-151.0,0.0002,2]
[407852849,1772836244509,-151.0,0.0002,2]
[407852850,1772836244519,-151.0,0.0002,2]
[407852851,1772836244531,-151.0,0.0002,2]
[407852852,1772836244541,-151.0,0.0002,2]
[407852853,1772836244550,-151.0,0.0002,2]
[407852854,1772836244559,-151.0,0.0002,2]
[407852855,1772836244568,-151.0,0.0002,2]
[407852856,1772836244577,-151.0,0.0002,2]
[407852857,1772836244586,-151.0,0.0002,2]
[407852858,1772836244595,-151.0,0.0002,2]
[407852859,1772836244604,-168.0,0.00020006,2]
[407852860,1772836244614,-346.0,0.00020016,2]
[407852861,1772836244623,-168.0,0.00020017,2]
[407852862,1772836244632,-168.0,0.00020102,2]
[407852863,1772836244642,-272.73,0.0002026,2]
[407852864,1772836244651,-168.0,0.00020395,2]
[407852865,1772836244661,-1000.0,0.00020424,2]
[407852866,1772836244675,-157.95,0.00020424,2]
[407852867,1772836244688,-168.0,0.00020434,2]
[407852868,1772836244697,-168.0,0.00020459,2]
[407852869,1772836244707,-272.73,0.0002053,2]
[407852870,1772836244717,-166.66,0.00020551,2]
[407852871,1772836244726,-503.0,0.00020554,8]
[407852872,1772836244736,-168.0,0.00020603,2]
[407852873,1772836244747,-168.0,0.00020628,2]
[407852874,1772836244756,-168.0,0.00020738,2]
[407852875,1772836244766,-168.0,0.00020789,2]
[407852876,1772836244775,-272.73,0.000208,2]
[407852877,1772836244784,-272.73,0.0002107,2]
[407852878,1772836244794,-166.66,0.00021168,2]
[407852879,1772836244803,-275.0,0.00021229,30]
[407852880,1772836244812,-272.73,0.0002134,2]
[407852881,1772836244822,-344.0,0.00021428,2]
[407852882,1772836244831,-674.0,0.0002145,2]
[407852883,1772836244840,-300.0,0.0002145,2]
[407852884,1772836244849,-300.0,0.0002145,2]
[407852885,1772836244858,-300.0,0.0002145,2]
[407852886,1772836244867,-300.0,0.0002145,2]
[407852887,1772836244877,-300.0,0.0002145,2]
[407852888,1772836244886,-300.0,0.0002145,2]
[407852889,1772836244896,-300.0,0.0002145,2]
[407852890,1772836244906,-246.0,0.0002145,2]
[407852891,1772836244916,-157.95,0.00021559,2]
[407852892,1772836244926,-272.73,0.0002161,2]
[407852893,1772836244935,-166.66,0.00021786,2]
[407852894,1772836244945,-244.0,0.00021863,30]
[407852895,1772836244958,-272.73,0.0002188,2]
[407852896,1772836244968,-151.0,0.00021918,2]
[407852897,1772836244978,-5000.0,0.00021918,2]
[407852898,1772836244988,-195.32,0.00022,30]
[407852899,1772836244999,-582.0,0.0002209,2]
[407852900,1772836245009,-250.0,0.0002209,2]
[407852901,1772836245018,-250.0,0.0002209,2]
[407852902,1772836245028,-250.0,0.0002209,2]
[407852903,1772836245232,-250.0,0.0002209,2]
[407852904,1772836245242,-250.0,0.0002209,2]
[407852905,1772836245252,-250.0,0.0002209,2]
[407852906,1772836245261,-250.0,0.0002209,2]
[407852907,1772836245272,-346.0,0.0002209,2]
[407852908,1772836245281,-622.66,0.00022114,30]
[407852909,1772836245291,-272.73,0.0002215,2]
[407852910,1772836245300,-176.0,0.00022218,30]
[407852911,1772836245310,-272.79,0.0002242,2]
[407852912,1772836245319,-550.0,0.00022449,2]
[407852913,1772836245328,-200.0,0.00022449,2]
[407852914,1772836245337,-200.0,0.00022449,2]
[407852915,1772836245346,-200.0,0.00022449,2]
[407852916,1772836245355,-200.0,0.00022449,2]
[407852917,1772836245365,-200.0,0.00022449,2]
[407852918,1772836245374,-296.0,0.00022449,2]
[407852919,1772836245383,-825.0,0.00022476,30]
[407852920,1772836245396,-258.0,0.00022539,30]
[407852921,1772836245405,-1000.0,0.00022693,2]
[407852922,1772836245415,-157.95,0.00022693,2]
[407852923,1772836245424,-503.0,0.00022931,10]
[407852924,1772836245433,-17446.31945346,0.00023,2]
[407852925,1772836245443,-2000.0,0.00023,2]
[407852926,1772836245451,-160.0,0.00023,2]
[407852927,1772836245460,-271.62202622,0.00023143,2]
[407852928,1772836245470,-613.13,0.00023207,2]
[407852929,1772836245479,-150.0,0.00023219,7]
[407852930,1772836245489,-150.0,0.00023219,7]
[407852931,1772836245498,-150.0,0.00023219,7]
[407852932,1772836245507,-185.0,0.00023219,7]
[407852933,1772836245516,-150.0,0.00023305,30]
[407852934,1772836245525,-274.0,0.00023305,30]
[407852935,1772836245535,-166.66,0.00023478,30]
[407852936,1772836245544,-157.95,0.00023828,2]
[407852937,1772836245553,-150.0,0.00023912,7]
[407852938,1772836245562,-150.0,0.00023912,7]
[407852939,1772836245571,-263.0,0.00023912,7]
[407852940,1772836245580,-166.66,0.00023972,30]
[407852941,1772836245589,-3240.0,0.00024277,2]
[407852942,1772836245600,-150.0,0.00024301,7]
[407852943,1772836245609,-257.0,0.00024301,7]
[407852944,1772836245619,-54767.3268562,0.00024442,2]
[407852945,1772836245628,-166.66,0.00024467,30]
[407852946,1772836245637,-150.0,0.00024652,7]
[407852947,1772836245647,-150.0,0.00024652,7]
[407852948,1772836245656,-296.0,0.00024652,7]
[407852949,1772836245670,-151.0,0.00024658,2]
[407852950,1772836245679,-180.968243,0.00024658,2]
[407852951,1772836245688,-151.0,0.00024658,2]
[407852952,1772836245697,-1000.0,0.00024658,2]
[407852953,1772836245707,-150.0,0.00024658,2]
[407852954,1772836245716,-228.0,0.00024762,120]
[407852955,1772836245725,-150.0,0.00024878,14]
[407852956,1772836245735,-150.0,0.00024878,14]
[407852957,1772836245745,-255.0,0.00024878,14]
[407852958,1772836245754,-240.0,0.00024878,30]
[407852959,1772836245763,-150.0,0.0002492,30]
[407852960,1772836245781,-186.0,0.0002492,30]
[407852961,1772836245790,-825.0,0.00024952,60]
[407852962,1772836245799,-166.66,0.00024961,30]
[407852963,1772836245810,-1000.0,0.00024963,2]
[407852964,1772836245820,-157.95,0.00024963,2]
[407852965,1772836245830,-622.66,0.00025049,30]
[407852966,1772836245840,-3942.441514,0.00025133,30]
[407852967,1772836245849,-9000.0,0.00025188,2]
[407852968,1772836245860,-721.12765535,0.00025188,2]
[407852969,1772836245870,-2500.0,0.00025188,2]
[407852970,1772836245880,-2500.0,0.00025188,2]
[407852971,1772836245890,-2500.0,0.00025188,2]
[407852972,1772836245900,-2500.0,0.00025188,2]
[407852973,1772836245909,-2500.0,0.00025188,2]
[407852974,1772836245919,-2500.0,0.00025188,2]
[407852975,1772836245930,-1000.0,0.00025188,2]
[407852976,1772836245939,-2500.0,0.00025188,2]
[407852977,1772836245949,-1000.0,0.00025188,2]
[407852978,1772836245958,-2500.0,0.00025188,2]
[407852979,1772836245968,-1000.0,0.00025188,2]
[407852980,1772836245977,-578.20924308,0.00025188,2]
[407852981,1772836245986,-1620.82343587,0.00025188,2]
[407852982,1772836245996,-151.0,0.00025188,2]
[407852983,1772836246006,-500.0,0.00025188,2]
[407852984,1772836246016,-500.0,0.00025188,2]
[407852985,1772836246026,-500.0,0.00025188,2]
[407852986,1772836246036,-500.0,0.00025188,2]
[407852987,1772836246045,-500.0,0.00025188,2]
[407852988,1772836246054,-500.0,0.00025188,2]
[407852989,1772836246064,-500.0,0.00025188,2]
[407852990,1772836246073,-500.0,0.00025188,2]
[407852991,1772836246083,-500.0,0.00025188,2]
[407852992,1772836246092,-500.0,0.00025188,2]
[407852993,1772836246102,-500.0,0.00025188,2]
[407852994,1772836246111,-500.0,0.00025188,2]
[407852995,1772836246121,-693.3919763,0.00025188,2]
[407852996,1772836246130,-250.0,0.00025188,2]
[407852997,1772836246139,-250.0,0.00025188,2]
[407852998,1772836246149,-250.0,0.00025188,2]
[407852999,1772836246159,-3000.0,0.00025188,2]
[407853000,1772836246172,-3000.0,0.00025188,2]
[407853001,1772836246181,-3000.0,0.00025188,2]
[407853002,1772836246191,-3000.0,0.00025188,2]
[407853003,1772836246200,-3000.0,0.00025188,2]
[407853004,1772836246210,-1824.84680973,0.00025188,2]
[407853005,1772836246219,-151.0,0.00025243,2]
[407853006,1772836246229,-719.04747942,0.00025243,2]
[407853007,1772836246240,-151.0,0.00025298,2]
[407853008,1772836246250,-745.65223616,0.00025298,2]
[407853009,1772836246259,-503.0,0.00025309,12]
[407853010,1772836246268,-151.0,0.00025353,2]
[407853011,1772836246278,-773.2413689,0.00025353,2]
[407853012,1772836246287,-1345.32,0.00025385,2]
[407853013,1772836246298,-151.0,0.00025408,2]
[407853014,1772836246307,-801.85129955,0.00025408,2]
[407853015,1772836246316,-12220.2424123,0.00025436,2]
[407853016,1772836246326,-166.66,0.00025455,30]
[407853017,1772836246336,-2814.0,0.00025458,2]
[407853018,1772836246346,-151.0,0.00025463,2]
[407853019,1772836246355,-831.51979763,0.00025463,2]
[407853020,1772836246364,-200.0,0.0002549,7]
[407853021,1772836246373,-200.0,0.0002549,7]
[407853022,1772836246383,-200.0,0.0002549,7]
[407853023,1772836246392,-200.0,0.0002549,7]
[407853024,1772836246401,-179.0,0.0002549,7]
[407853025,1772836246411,-151.0,0.00025518,2]
[407853026,1772836246420,-862.28603014,0.00025518,2]
[407853027,1772836246430,-151.0,0.00025573,2]
[407853028,1772836246440,-894.19061326,0.00025573,2]
[407853029,1772836246449,-150.0,0.00025621,14]
[407853030,1772836246459,-150.0,0.00025621,14]
[407853031,1772836246469,-192.0,0.00025621,14]
[407853032,1772836246480,-151.0,0.00025628,2]
[407853033,1772836246490,-927.27566595,0.00025628,2]
[407853034,1772836246499,-151.0,0.00025683,2]
[407853035,1772836246511,-961.58486559,0.00025683,2]
[407853036,1772836246521,-151.0,0.00025738,2]
[407853037,1772836246531,-997.16350561,0.00025738,2]
[407853038,1772836246541,-151.0,0.00025793,2]
[407853039,1772836246550,-151.0,0.00025848,2]
[407853040,1772836246560,-150.0,0.0002589,2]
[407853041,1772836246570,-151.0,0.00025903,2]
[407853042,1772836246580,-166.66,0.00025949,30]
[407853043,1772836246590,-151.0,0.00025958,2]
[407853044,1772836246599,-151.0,0.00026013,2]
[407853045,1772836246608,-150.0,0.00026036,14]
[407853046,1772836246617,-206.0,0.00026036,14]
[407853047,1772836246627,-300.19989737,0.00026068,2]
[407853048,1772836246636,-157.95,0.00026098,2]
[407853049,1772836246645,-195.32,0.00026206,30]
[407853050,1772836246654,-150.0,0.00026413,14]
[407853051,1772836246664,-150.0,0.00026413,14]
[407853052,1772836246677,-222.0,0.00026413,14]
[407853053,1772836246686,-180.0,0.00026478,120]
[407853054,1772836246695,-583.46340198,0.00026593,16]
[407853055,1772836246704,-2000.0,0.000267,2]
[407853056,1772836246715,-150.0,0.00026813,21]
[407853057,1772836246724,-246.0,0.00026813,21]
[407853058,1772836246733,-1567.7555288,0.00026947,2]
[407853059,1772836246744,-226.4700398,0.00026947,2]
[407853060,1772836246753,-440.71,0.00027123,4]
[407853061,1772836246762,-150.0,0.00027185,2]
[407853062,1772836246772,-878.11,0.000272,14]
[407853063,1772836246781,-1000.0,0.00027232,2]
[407853064,1772836246791,-157.95,0.00027232,2]
[407853065,1772836246799,-150.0,0.00027311,14]
[407853066,1772836246809,-150.0,0.00027311,14]
[407853067,1772836246820,-150.0,0.00027311,14]
[407853068,1772836246829,-150.0,0.00027311,14]
[407853069,1772836246838,-256.0,0.00027311,14]
[407853070,1772836246847,-150.0,0.00027369,2]
[407853071,1772836246857,-151.0,0.00027397,2]
[407853072,1772836246867,-1000.0,0.00027397,20]
[407853073,1772836246877,-300.0,0.00027397,2]
[407853074,1772836246886,-279.245746,0.00027397,2]
[407853075,1772836246898,-279.245746,0.00027397,2]
[407853076,1772836246907,-279.245746,0.00027397,2]
[407853077,1772836246917,-279.245746,0.00027397,2]
[407853078,1772836246927,-151.0,0.00027397,2]
[407853079,1772836246938,-151.0,0.00027397,2]
[407853080,1772836246950,-151.0,0.00027397,2]
[407853081,1772836246961,-151.0,0.00027397,2]
[407853082,1772836246970,-151.0,0.00027397,2]
[407853083,1772836246980,-151.0,0.00027397,2]
[407853084,1772836246990,-300.795903,0.00027397,2]
[407853085,1772836247000,-9009.35,0.00027397,10]
[407853086,1772836247010,-7507.8,0.00027397,10]
[407853087,1772836247020,-6256.5,0.00027397,10]
[407853088,1772836247031,-5213.75,0.00027397,10]
[407853089,1772836247041,-163.28,0.000274,7]
[407853090,1772836247051,-825.0,0.00027428,60]
[407853091,1772836247060,-152.0,0.000275,7]
[407853092,1772836247069,-2253.0,0.00027567,5]
[407853093,1772836247078,-150.0,0.00027613,21]
[407853094,1772836247088,-201.0,0.00027613,21]
[407853095,1772836247097,-503.0,0.00027687,14]
[407853096,1772836247107,-500.0,0.00027927,2]
[407853097,1772836247118,-622.66,0.00027984,30]
[407853098,1772836247128,-160.0,0.00028,10]
[407853099,1772836247138,-254.0,0.00028061,21]
[407853100,1772836247147,-271.62202622,0.000281,2]
[407853101,1772836247157,-150.0,0.00028467,21]
[407853102,1772836247167,-222.0,0.00028467,21]
[407853103,1772836247176,-150.0,0.00028544,2]
[407853104,1772836247186,-172.0,0.00029135,30]
[407853105,1772836247195,-150.0,0.00029435,21]
[407853106,1772836247206,-150.0,0.00029435,21]
[407853107,1772836247216,-150.0,0.00029435,21]
[407853108,1772836247225,-162.0,0.00029435,21]
[407853109,1772836247235,-165.123,0.00029469,2]